[Event "*** Titled Tuesday Blitz"]
[Site "Chess.com"]
[Date "2020.05.05"]
[Round "8"]
[White "emperor87"]
[Black "Mili_Brizzi"]
[Result "1-0"]
[WhiteElo "2581"]
[BlackElo "2447"]
[TimeControl "180+1"]
[EndTime "11:35:06 PDT"]
[Termination "emperor87 won by resignation"]

1. d4 {[%clk 0:03:00.9]} 1... d5 {[%clk 0:02:58.5]} 2. Nf3 {[%clk 0:03:00.7]}
2... Nf6 {[%clk 0:02:52.6]} 3. c4 {[%clk 0:02:59.9]} 3... c6 {[%clk 0:02:50.2]}
4. Nc3 {[%clk 0:02:59.4]} 4... dxc4 {[%clk 0:02:49.5]} 5. a4 {[%clk 0:02:58.5]}
5... Bf5 {[%clk 0:02:47.2]} 6. e3 {[%clk 0:02:58]} 6... e6 {[%clk 0:02:45.2]} 7.
Bxc4 {[%clk 0:02:57.7]} 7... Bb4 {[%clk 0:02:45.1]} 8. O-O {[%clk 0:02:57.4]}
8... O-O {[%clk 0:02:42.5]} 9. Qe2 {[%clk 0:02:57.3]} 9... Nbd7 {[%clk
0:02:35.3]} 10. e4 {[%clk 0:02:56.3]} 10... Bg6 {[%clk 0:02:35.3]} 11. e5 {[%clk
0:02:55.7]} 11... Nd5 {[%clk 0:02:32.6]} 12. Ne4 {[%clk 0:02:55.6]} 12... c5
{[%clk 0:02:01.4]} 13. dxc5 {[%clk 0:02:47.7]} 13... Qc7 {[%clk 0:01:49.1]} 14.
Ng3 {[%clk 0:02:38.7]} 14... Rac8 {[%clk 0:01:38.1]} 15. h4 {[%clk 0:02:31.1]}
15... h6 {[%clk 0:01:34.5]} 16. h5 {[%clk 0:02:30.1]} 16... Bh7 {[%clk
0:01:31.7]} 17. Bd2 {[%clk 0:01:44]} 17... Bxd2 {[%clk 0:01:12.8]} 18. Qxd2
{[%clk 0:01:43.2]} 18... Nxe5 {[%clk 0:01:05.9]} 19. Bxd5 {[%clk 0:01:41]} 19...
Rfd8 {[%clk 0:01:02.3]} 20. Nxe5 {[%clk 0:01:14]} 20... Qxe5 {[%clk 0:01:00]}
21. Qa5 {[%clk 0:01:03.5]} 21... Rxd5 {[%clk 0:00:47.6]} 22. Qxa7 {[%clk
0:00:59.4]} 22... Qxb2 {[%clk 0:00:36.4]} 23. Rfd1 {[%clk 0:00:55.9]} 23... Rcd8
{[%clk 0:00:25.6]} 24. Rdc1 {[%clk 0:00:47.5]} 24... Bd3 {[%clk 0:00:18.6]} 25.
Qb6 {[%clk 0:00:45.9]} 25... Qxb6 {[%clk 0:00:17.6]} 26. cxb6 {[%clk 0:00:45]}
26... Ba6 {[%clk 0:00:18]} 27. a5 {[%clk 0:00:41.6]} 27... Rb5 {[%clk
0:00:16.6]} 28. Ne4 {[%clk 0:00:32.4]} 28... Rdd5 {[%clk 0:00:14.5]} 29. Nc3
{[%clk 0:00:32.2]} 29... Rxa5 {[%clk 0:00:12.8]} 30. Nxd5 {[%clk 0:00:31.3]}
30... Rxd5 {[%clk 0:00:12.9]} 31. Rxa6 {[%clk 0:00:30.4]} 31... bxa6 {[%clk
0:00:12.8]} 32. b7 {[%clk 0:00:30.5]} 1-0

[Event "*** Titled Tuesday Blitz"]
[Site "Chess.com"]
[Date "2020.05.05"]
[Round "8"]
[White "Grandelicious"]
[Black "Rytenko_V"]
[Result "1-0"]
[WhiteElo "2738"]
[BlackElo "2481"]
[TimeControl "180+1"]
[EndTime "11:35:08 PDT"]
[Termination "Grandelicious won by resignation"]

1. Nf3 {[%clk 0:03:00.9]} 1... Nf6 {[%clk 0:02:50.5]} 2. g3 {[%clk 0:03:00]}
2... g6 {[%clk 0:02:50.4]} 3. b3 {[%clk 0:02:59.5]} 3... Bg7 {[%clk 0:02:51.3]}
4. Bb2 {[%clk 0:03:00.1]} 4... O-O {[%clk 0:02:52.1]} 5. Bg2 {[%clk 0:03:00.6]}
5... c5 {[%clk 0:02:52.6]} 6. O-O {[%clk 0:02:59]} 6... d5 {[%clk 0:02:53]} 7.
e3 {[%clk 0:02:57.5]} 7... Nc6 {[%clk 0:02:50.3]} 8. Ne5 {[%clk 0:02:57.6]} 8...
Nxe5 {[%clk 0:02:49.8]} 9. Bxe5 {[%clk 0:02:58.5]} 9... b6 {[%clk 0:02:44.7]}
10. c4 {[%clk 0:02:55]} 10... Bb7 {[%clk 0:02:45]} 11. Nc3 {[%clk 0:02:55.3]}
11... e6 {[%clk 0:02:39.3]} 12. d4 {[%clk 0:02:50.8]} 12... Ne4 {[%clk
0:02:04.2]} 13. Nxe4 {[%clk 0:02:44.4]} 13... dxe4 {[%clk 0:01:46.3]} 14. Bxg7
{[%clk 0:02:43.7]} 14... Kxg7 {[%clk 0:01:47.2]} 15. dxc5 {[%clk 0:02:42.7]}
15... bxc5 {[%clk 0:01:45.8]} 16. Qc2 {[%clk 0:02:38.9]} 16... f5 {[%clk
0:01:45.2]} 17. Rad1 {[%clk 0:02:37.6]} 17... Qf6 {[%clk 0:01:42.4]} 18. Rd7+
{[%clk 0:02:32.9]} 18... Rf7 {[%clk 0:01:42.4]} 19. Rfd1 {[%clk 0:02:33.5]}
19... Rf8 {[%clk 0:01:42.4]} 20. Bf1 {[%clk 0:02:20.1]} 20... Rxd7 {[%clk
0:01:33.6]} 21. Rxd7+ {[%clk 0:02:21]} 21... Rf7 {[%clk 0:01:34.2]} 22. Qd2
{[%clk 0:02:19.5]} 22... Rxd7 {[%clk 0:01:30.5]} 23. Qxd7+ {[%clk 0:02:20.4]}
23... Qf7 {[%clk 0:01:31.1]} 24. Qd6 {[%clk 0:02:17.5]} 24... Qf8 {[%clk
0:01:15.6]} 25. Qc7+ {[%clk 0:02:15.9]} 25... Qf7 {[%clk 0:01:13.6]} 26. Qxc5
{[%clk 0:02:16.5]} 26... Qd7 {[%clk 0:01:13.6]} 27. Qxa7 {[%clk 0:02:14.3]}
27... Kh6 {[%clk 0:01:10.6]} 28. Qd4 {[%clk 0:02:10.9]} 28... Qc7 {[%clk
0:01:06.6]} 29. b4 {[%clk 0:02:07.7]} 29... e5 {[%clk 0:01:05.5]} 30. Qc3 {[%clk
0:02:07.6]} 30... Qd6 {[%clk 0:00:56.7]} 31. c5 {[%clk 0:01:53.6]} 31... Qd1
{[%clk 0:00:56.1]} 32. b5 {[%clk 0:01:50]} 32... Bd5 {[%clk 0:00:49.7]} 33. c6
{[%clk 0:01:43.4]} 33... Be6 {[%clk 0:00:21.6]} 34. b6 {[%clk 0:01:31.9]} 34...
f4 {[%clk 0:00:20.8]} 35. exf4 {[%clk 0:00:55.7]} 35... Bh3 {[%clk 0:00:17.6]}
36. Qc4 {[%clk 0:00:56]} 36... exf4 {[%clk 0:00:13]} 37. Qe2 {[%clk 0:00:47.3]}
37... Qc1 {[%clk 0:00:09.3]} 38. b7 {[%clk 0:00:45.5]} 38... f3 {[%clk
0:00:09.4]} 39. Qe3+ {[%clk 0:00:45.9]} 39... Qxe3 {[%clk 0:00:08.7]} 40. fxe3
{[%clk 0:00:46.8]} 1-0

[Event "*** Titled Tuesday Blitz"]
[Site "Chess.com"]
[Date "2020.05.05"]
[Round "8"]
[White "fabianvivasz"]
[Black "ZverevLev"]
[Result "0-1"]
[WhiteElo "2341"]
[BlackElo "2097"]
[TimeControl "180+1"]
[EndTime "11:35:08 PDT"]
[Termination "ZverevLev won by resignation"]

1. e4 {[%clk 0:01:52.6]} 1... e5 {[%clk 0:02:52.4]} 2. Nf3 {[%clk 0:01:51.7]}
2... Nc6 {[%clk 0:02:50.9]} 3. d4 {[%clk 0:01:50]} 3... exd4 {[%clk 0:02:47.4]}
4. Nxd4 {[%clk 0:01:49.2]} 4... Bc5 {[%clk 0:02:44.3]} 5. Nb3 {[%clk 0:01:48.6]}
5... Bb6 {[%clk 0:02:40.5]} 6. Nc3 {[%clk 0:01:48.6]} 6... Nf6 {[%clk
0:02:35.4]} 7. Qe2 {[%clk 0:01:48.8]} 7... a5 {[%clk 0:02:29.1]} 8. Bg5 {[%clk
0:01:49.7]} 8... O-O {[%clk 0:02:25.2]} 9. Nd5 {[%clk 0:01:39.7]} 9... a4 {[%clk
0:02:16.5]} 10. Nxf6+ {[%clk 0:01:34.5]} 10... gxf6 {[%clk 0:02:14.6]} 11. Bh6
{[%clk 0:01:34.9]} 11... Kh8 {[%clk 0:02:09.9]} 12. Bxf8 {[%clk 0:01:23.4]}
12... axb3 {[%clk 0:02:07.7]} 13. Bh6 {[%clk 0:01:10.5]} 13... Nd4 {[%clk
0:02:00.9]} 14. Qg4 {[%clk 0:00:54.5]} 14... Nxc2+ {[%clk 0:01:59.4]} 15. Kd2
{[%clk 0:00:52.5]} 15... Qg8 {[%clk 0:02:00.3]} 16. Qh4 {[%clk 0:00:20.1]} 16...
Bd4 {[%clk 0:01:40.7]} 17. Rd1 {[%clk 0:00:14.6]} 17... Rxa2 {[%clk 0:01:25.5]}
18. Bc4 {[%clk 0:00:12.7]} 18... Rxb2 {[%clk 0:01:24.2]} 19. Kd3 {[%clk
0:00:12.7]} 19... c5 {[%clk 0:01:15.7]} 20. Bd2 {[%clk 0:00:08.5]} 20... d5
{[%clk 0:00:55.2]} 21. Bxd5 {[%clk 0:00:06.9]} 21... b5 {[%clk 0:00:54.4]} 22.
Bxb3 {[%clk 0:00:03]} 22... c4+ {[%clk 0:00:46.2]} 23. Bxc4 {[%clk 0:00:01.2]}
23... bxc4+ {[%clk 0:00:46.8]} 24. Kxc4 {[%clk 0:00:02.1]} 24... Ba6+ {[%clk
0:00:45.5]} 25. Kd5 {[%clk 0:00:02.1]} 25... Qd8+ {[%clk 0:00:42.7]} 26. Kc6
{[%clk 0:00:01.8]} 0-1

[Event "*** Titled Tuesday Blitz"]
[Site "Chess.com"]
[Date "2020.05.05"]
[Round "8"]
[White "GoValya"]
[Black "Nellichka"]
[Result "0-1"]
[WhiteElo "2157"]
[BlackElo "2089"]
[TimeControl "180+1"]
[EndTime "11:35:12 PDT"]
[Termination "Nellichka won by checkmate"]

1. d4 {[%clk 0:03:00.9]} 1... Nf6 {[%clk 0:02:58.2]} 2. Nf3 {[%clk 0:03:00.5]}
2... c5 {[%clk 0:02:56.8]} 3. g3 {[%clk 0:02:58]} 3... d5 {[%clk 0:02:51.8]} 4.
Bg2 {[%clk 0:02:57.3]} 4... cxd4 {[%clk 0:02:49.9]} 5. Nxd4 {[%clk 0:02:57.4]}
5... e5 {[%clk 0:02:49.1]} 6. Nf3 {[%clk 0:02:56.6]} 6... Nc6 {[%clk 0:02:48.9]}
7. Bg5 {[%clk 0:02:53.9]} 7... Be7 {[%clk 0:02:38.3]} 8. Nc3 {[%clk 0:02:53.4]}
8... Be6 {[%clk 0:02:37.1]} 9. O-O {[%clk 0:02:50.2]} 9... O-O {[%clk
0:02:36.1]} 10. a3 {[%clk 0:02:43.1]} 10... d4 {[%clk 0:02:25.3]} 11. Bxf6
{[%clk 0:02:36.1]} 11... gxf6 {[%clk 0:02:18.8]} 12. Ne4 {[%clk 0:02:21.3]}
12... f5 {[%clk 0:02:17.9]} 13. Ned2 {[%clk 0:02:21.2]} 13... e4 {[%clk
0:02:15.1]} 14. Ne1 {[%clk 0:02:20]} 14... Ne5 {[%clk 0:01:49.6]} 15. h3 {[%clk
0:02:00.3]} 15... Rc8 {[%clk 0:01:45.8]} 16. Nb3 {[%clk 0:01:54.2]} 16... Nc6
{[%clk 0:01:21.6]} 17. f3 {[%clk 0:01:29.1]} 17... Bd5 {[%clk 0:01:03.2]} 18.
fxe4 {[%clk 0:01:17.2]} 18... fxe4 {[%clk 0:01:02]} 19. Rf4 {[%clk 0:01:15.8]}
19... f5 {[%clk 0:01:00.1]} 20. g4 {[%clk 0:00:59]} 20... Bg5 {[%clk 0:00:52.1]}
21. Rxf5 {[%clk 0:00:56.8]} 21... Be3+ {[%clk 0:00:50.7]} 22. Kh1 {[%clk
0:00:53.4]} 22... Rxf5 {[%clk 0:00:50]} 23. gxf5 {[%clk 0:00:53.4]} 23... Qh4
{[%clk 0:00:47.8]} 24. Nd3 {[%clk 0:00:48.7]} 24... Kh8 {[%clk 0:00:42.2]} 25.
Ndc5 {[%clk 0:00:42.5]} 25... Rg8 {[%clk 0:00:39.1]} 26. Qf1 {[%clk 0:00:37.3]}
26... Bf2 {[%clk 0:00:37.9]} 27. Rd1 {[%clk 0:00:31.2]} 27... Ne7 {[%clk
0:00:30.7]} 28. Nxd4 {[%clk 0:00:29.4]} 28... e3 {[%clk 0:00:18.1]} 29. Nde6
{[%clk 0:00:29.1]} 29... Bxg2+ {[%clk 0:00:16.2]} 30. Qxg2 {[%clk 0:00:29.2]}
30... Rxg2 {[%clk 0:00:15.8]} 31. Rd8+ {[%clk 0:00:23.7]} 31... Rg8 {[%clk
0:00:14.5]} 32. Rxg8+ {[%clk 0:00:23.3]} 32... Kxg8 {[%clk 0:00:13.9]} 33. Nd7
{[%clk 0:00:21.2]} 33... Qxh3# {[%clk 0:00:12.9]} 0-1

[Event "*** Titled Tuesday Blitz"]
[Site "Chess.com"]
[Date "2020.05.05"]
[Round "8"]
[White "maxsergej"]
[Black "BillCoe"]
[Result "1-0"]
[WhiteElo "2127"]
[BlackElo "2014"]
[TimeControl "180+1"]
[EndTime "11:35:12 PDT"]
[Termination "maxsergej won on time"]

1. e4 {[%clk 0:02:59.1]} 1... c5 {[%clk 0:02:59.6]} 2. Nf3 {[%clk 0:02:58.6]}
2... e6 {[%clk 0:03:00.1]} 3. d4 {[%clk 0:02:58.7]} 3... cxd4 {[%clk 0:03:01]}
4. Nxd4 {[%clk 0:02:58.8]} 4... a6 {[%clk 0:03:01.9]} 5. Be2 {[%clk 0:02:58.1]}
5... Qc7 {[%clk 0:03:02.5]} 6. O-O {[%clk 0:02:57.5]} 6... Bc5 {[%clk
0:03:01.7]} 7. Be3 {[%clk 0:02:56.4]} 7... d6 {[%clk 0:03:01]} 8. c4 {[%clk
0:02:45.2]} 8... Nf6 {[%clk 0:03:00.2]} 9. Nc3 {[%clk 0:02:44.4]} 9... Nc6
{[%clk 0:02:54.5]} 10. Qd2 {[%clk 0:02:39.3]} 10... O-O {[%clk 0:02:51.4]} 11.
Rad1 {[%clk 0:02:35.5]} 11... Ne5 {[%clk 0:02:41.6]} 12. h3 {[%clk 0:02:21.8]}
12... Bd7 {[%clk 0:02:17.2]} 13. f4 {[%clk 0:02:20]} 13... Ng6 {[%clk
0:02:16.2]} 14. Bf3 {[%clk 0:02:14.7]} 14... e5 {[%clk 0:02:07.5]} 15. fxe5
{[%clk 0:01:57.4]} 15... dxe5 {[%clk 0:02:07.4]} 16. Nf5 {[%clk 0:01:42.1]}
16... Bxf5 {[%clk 0:02:01.2]} 17. exf5 {[%clk 0:01:41.2]} 17... Nf4 {[%clk
0:01:56.1]} 18. Kh2 {[%clk 0:01:24]} 18... Rad8 {[%clk 0:01:46.9]} 19. Nd5
{[%clk 0:01:12.3]} 19... N4xd5 {[%clk 0:01:24]} 20. Bxd5 {[%clk 0:01:11.4]}
20... Nxd5 {[%clk 0:01:15.4]} 21. cxd5 {[%clk 0:01:02.2]} 21... Bxe3 {[%clk
0:01:02.8]} 22. Qxe3 {[%clk 0:01:00.4]} 22... Qd6 {[%clk 0:01:00.8]} 23. Kh1
{[%clk 0:00:49.3]} 23... Rc8 {[%clk 0:00:57.9]} 24. f6 {[%clk 0:00:46.8]} 24...
gxf6 {[%clk 0:00:16.5]} 25. Qh6 {[%clk 0:00:45.2]} 25... Kh8 {[%clk 0:00:04.7]}
26. Rxf6 {[%clk 0:00:43.3]} 26... Qd7 {[%clk 0:00:02.7]} 27. d6 {[%clk
0:00:33.1]} 27... Rg8 {[%clk 0:00:02.8]} 28. Qh5 {[%clk 0:00:23.5]} 28... Rg6
{[%clk 0:00:01.2]} 29. Qxe5 {[%clk 0:00:20.1]} 1-0

[Event "*** Titled Tuesday Blitz"]
[Site "Chess.com"]
[Date "2020.05.05"]
[Round "8"]
[White "DishonorOnYourCow"]
[Black "LiamPutnam2008"]
[Result "0-1"]
[WhiteElo "2331"]
[BlackElo "2530"]
[TimeControl "180+1"]
[EndTime "11:35:14 PDT"]
[Termination "LiamPutnam2008 won on time"]

1. d4 {[%clk 0:03:00.9]} 1... Nf6 {[%clk 0:02:59.2]} 2. c4 {[%clk 0:02:59.9]}
2... e6 {[%clk 0:02:54]} 3. Nf3 {[%clk 0:02:58.8]} 3... d5 {[%clk 0:02:49.2]} 4.
Nc3 {[%clk 0:02:58]} 4... c6 {[%clk 0:02:45.5]} 5. cxd5 {[%clk 0:02:47.5]} 5...
exd5 {[%clk 0:02:39.4]} 6. Qc2 {[%clk 0:02:43.2]} 6... Bd6 {[%clk 0:02:26.2]} 7.
Bg5 {[%clk 0:02:41.1]} 7... h6 {[%clk 0:02:25.9]} 8. Bh4 {[%clk 0:02:40.8]} 8...
O-O {[%clk 0:02:26.2]} 9. e3 {[%clk 0:02:40.2]} 9... Nbd7 {[%clk 0:02:24.7]} 10.
Bd3 {[%clk 0:02:39.6]} 10... Re8 {[%clk 0:02:24.5]} 11. O-O-O {[%clk 0:02:17.3]}
11... b5 {[%clk 0:02:14.1]} 12. g4 {[%clk 0:02:13.1]} 12... b4 {[%clk
0:02:09.6]} 13. Ne2 {[%clk 0:02:10.7]} 13... c5 {[%clk 0:01:51.3]} 14. g5 {[%clk
0:02:07.6]} 14... hxg5 {[%clk 0:01:48.2]} 15. Nxg5 {[%clk 0:02:00.2]} 15... c4
{[%clk 0:01:44.2]} 16. Bh7+ {[%clk 0:01:58.3]} 16... Kf8 {[%clk 0:01:44]} 17.
Rhg1 {[%clk 0:01:30.3]} 17... Qa5 {[%clk 0:01:41.8]} 18. Nxf7 {[%clk 0:01:15.3]}
18... Kxf7 {[%clk 0:01:03.6]} 19. Qg6+ {[%clk 0:01:05.3]} 19... Ke7 {[%clk
0:01:03.8]} 20. Qxg7+ {[%clk 0:01:04]} 20... Kd8 {[%clk 0:00:58.2]} 21. Bxf6+
{[%clk 0:01:03.2]} 21... Kc7 {[%clk 0:00:58.6]} 22. Kb1 {[%clk 0:00:49.2]} 22...
Rb8 {[%clk 0:00:24.3]} 23. Rc1 {[%clk 0:00:35.3]} 23... b3 {[%clk 0:00:23.9]}
24. axb3 {[%clk 0:00:29.3]} 24... Rxb3 {[%clk 0:00:24.8]} 25. Nc3 {[%clk
0:00:25.7]} 25... Ba3 {[%clk 0:00:20.1]} 26. Rc2 {[%clk 0:00:15.2]} 26... Bxb2
{[%clk 0:00:19.4]} 27. Nxd5+ {[%clk 0:00:14.5]} 27... Qxd5 {[%clk 0:00:18.4]}
28. Rxb2 {[%clk 0:00:14.6]} 28... c3 {[%clk 0:00:15.9]} 29. Be5+ {[%clk
0:00:09.1]} 29... Rxe5 {[%clk 0:00:15.7]} 30. Qxe5+ {[%clk 0:00:01.5]} 30...
Nxe5 {[%clk 0:00:15.4]} 0-1

[Event "*** Titled Tuesday Blitz"]
[Site "Chess.com"]
[Date "2020.05.05"]
[Round "8"]
[White "ecwinslow"]
[Black "warmoatmeal"]
[Result "0-1"]
[WhiteElo "2196"]
[BlackElo "2038"]
[TimeControl "180+1"]
[EndTime "11:35:14 PDT"]
[Termination "warmoatmeal won by resignation"]

1. e4 {[%clk 0:03:00.9]} 1... c6 {[%clk 0:02:58.9]} 2. c4 {[%clk 0:02:58.7]}
2... d5 {[%clk 0:02:56]} 3. cxd5 {[%clk 0:02:56.8]} 3... cxd5 {[%clk 0:02:56]}
4. exd5 {[%clk 0:02:56.4]} 4... Nf6 {[%clk 0:02:54.8]} 5. Nc3 {[%clk 0:02:56.8]}
5... Nxd5 {[%clk 0:02:48.1]} 6. Nf3 {[%clk 0:02:45.7]} 6... Nc6 {[%clk
0:02:35.1]} 7. Bb5 {[%clk 0:02:31.9]} 7... Bg4 {[%clk 0:02:26.7]} 8. Qa4 {[%clk
0:02:24.6]} 8... Qd7 {[%clk 0:02:02.4]} 9. Ne5 {[%clk 0:02:12.9]} 9... Qe6
{[%clk 0:02:01.7]} 10. Bxc6+ {[%clk 0:02:11.3]} 10... bxc6 {[%clk 0:02:01.4]}
11. Qxc6+ {[%clk 0:02:08.7]} 11... Qxc6 {[%clk 0:02:01.1]} 12. Nxc6 {[%clk
0:02:08.1]} 12... Nxc3 {[%clk 0:01:37.7]} 13. dxc3 {[%clk 0:01:57.7]} 13... e6
{[%clk 0:01:38.6]} 14. Ne5 {[%clk 0:01:46.1]} 14... Bf5 {[%clk 0:01:34.6]} 15.
Be3 {[%clk 0:01:44.8]} 15... f6 {[%clk 0:01:34.7]} 16. Nf3 {[%clk 0:01:34.7]}
16... e5 {[%clk 0:01:30.8]} 17. O-O-O {[%clk 0:01:31.1]} 17... Be7 {[%clk
0:01:28.7]} 18. h3 {[%clk 0:01:29.3]} 18... h5 {[%clk 0:01:27.1]} 19. Nd2 {[%clk
0:01:21.1]} 19... Be6 {[%clk 0:01:24.6]} 20. Kb1 {[%clk 0:01:19.9]} 20... Kf7
{[%clk 0:01:23.8]} 21. f3 {[%clk 0:01:18.6]} 21... Rhc8 {[%clk 0:01:22]} 22. Ne4
{[%clk 0:01:14.9]} 22... Rc6 {[%clk 0:00:40.6]} 23. g4 {[%clk 0:01:01.5]} 23...
hxg4 {[%clk 0:00:29]} 24. hxg4 {[%clk 0:00:59]} 24... a5 {[%clk 0:00:29.9]} 25.
Rd2 {[%clk 0:00:48.4]} 25... a4 {[%clk 0:00:28.9]} 26. a3 {[%clk 0:00:47.5]}
26... Rb8 {[%clk 0:00:26.8]} 27. Ka1 {[%clk 0:00:37.4]} 27... Rc4 {[%clk
0:00:12.9]} 28. Nd6+ {[%clk 0:00:29.5]} 28... Bxd6 {[%clk 0:00:12.5]} 29. Rxd6
{[%clk 0:00:29.9]} 29... Ke7 {[%clk 0:00:12.4]} 30. Rhd1 {[%clk 0:00:24.5]}
30... e4 {[%clk 0:00:09.3]} 31. Ra6 {[%clk 0:00:18.8]} 31... exf3 {[%clk
0:00:06.7]} 32. Ra7+ {[%clk 0:00:18]} 32... Kf8 {[%clk 0:00:04.7]} 33. Bf4
{[%clk 0:00:15.7]} 33... Rxf4 {[%clk 0:00:03.7]} 0-1

[Event "*** Titled Tuesday Blitz"]
[Site "Chess.com"]
[Date "2020.05.05"]
[Round "8"]
[White "jguerramzllo"]
[Black "Lion-Al-Messi"]
[Result "1-0"]
[WhiteElo "2611"]
[BlackElo "2424"]
[TimeControl "180+1"]
[EndTime "11:35:15 PDT"]
[Termination "jguerramzllo won on time"]

1. c4 {[%clk 0:03:00.9]} 1... b6 {[%clk 0:03:00.1]} 2. Nf3 {[%clk 0:02:57.9]}
2... Bb7 {[%clk 0:03:01]} 3. Nc3 {[%clk 0:02:57.4]} 3... Nf6 {[%clk 0:03:01.4]}
4. d3 {[%clk 0:02:54.4]} 4... e6 {[%clk 0:02:59.3]} 5. e4 {[%clk 0:02:54.3]}
5... d5 {[%clk 0:02:56.5]} 6. cxd5 {[%clk 0:02:53.1]} 6... exd5 {[%clk
0:02:56.1]} 7. e5 {[%clk 0:02:53.7]} 7... d4 {[%clk 0:02:56.2]} 8. exf6 {[%clk
0:02:16.3]} 8... dxc3 {[%clk 0:02:55.8]} 9. bxc3 {[%clk 0:02:16.4]} 9... Kd7
{[%clk 0:02:56.7]} 10. fxg7 {[%clk 0:02:02.1]} 10... Bxg7 {[%clk 0:02:54.1]} 11.
Qa4+ {[%clk 0:01:56.1]} 11... Ke7 {[%clk 0:02:49.5]} 12. Bg5+ {[%clk 0:01:40.3]}
12... f6 {[%clk 0:02:49.4]} 13. Bf4 {[%clk 0:01:36.5]} 13... Nd7 {[%clk
0:02:40.5]} 14. O-O-O {[%clk 0:01:27.8]} 14... Re8 {[%clk 0:02:26.6]} 15. Nh4
{[%clk 0:01:16.4]} 15... Kf8 {[%clk 0:02:18.1]} 16. Nf5 {[%clk 0:01:07.6]} 16...
Ne5 {[%clk 0:02:17.7]} 17. Nxg7 {[%clk 0:01:02.7]} 17... Kxg7 {[%clk 0:02:17.7]}
18. d4 {[%clk 0:01:01.6]} 18... Ng6 {[%clk 0:02:17.1]} 19. Be3 {[%clk
0:00:57.4]} 19... Qd6 {[%clk 0:02:12.6]} 20. h4 {[%clk 0:00:56.6]} 20... Bd5
{[%clk 0:01:45.3]} 21. h5 {[%clk 0:00:55.2]} 21... Nf4 {[%clk 0:01:41.6]} 22.
Rh4 {[%clk 0:00:53.3]} 22... Ne6 {[%clk 0:01:36.6]} 23. Bd3 {[%clk 0:00:49.4]}
23... Kh8 {[%clk 0:01:31.2]} 24. Qc2 {[%clk 0:00:48.2]} 24... Qd7 {[%clk
0:01:27.1]} 25. h6 {[%clk 0:00:46.2]} 25... Rg8 {[%clk 0:01:25.3]} 26. g3 {[%clk
0:00:43]} 26... Qf7 {[%clk 0:01:22.8]} 27. c4 {[%clk 0:00:42.6]} 27... Bf3
{[%clk 0:01:21]} 28. Rd2 {[%clk 0:00:42.9]} 28... Ng5 {[%clk 0:01:20.1]} 29. d5
{[%clk 0:00:41]} 29... b5 {[%clk 0:01:11.6]} 30. Bd4 {[%clk 0:00:37.6]} 30...
bxc4 {[%clk 0:01:05.4]} 31. Bxc4 {[%clk 0:00:37.8]} 31... Qe7 {[%clk 0:00:35.8]}
32. Rf4 {[%clk 0:00:33.8]} 32... Rgf8 {[%clk 0:00:34]} 33. Qc3 {[%clk
0:00:31.8]} 33... Ne4 {[%clk 0:00:15.4]} 34. Qxf3 {[%clk 0:00:31.6]} 34... Nxd2
{[%clk 0:00:08.4]} 35. Kxd2 {[%clk 0:00:32.5]} 35... Qb4+ {[%clk 0:00:07.8]} 36.
Qc3 {[%clk 0:00:32.5]} 1-0

[Event "*** Titled Tuesday Blitz"]
[Site "Chess.com"]
[Date "2020.05.05"]
[Round "8"]
[White "icychess54"]
[Black "WhiteCapital80"]
[Result "1-0"]
[WhiteElo "2318"]
[BlackElo "2443"]
[TimeControl "180+1"]
[EndTime "11:35:15 PDT"]
[Termination "icychess54 won by resignation"]

1. c4 {[%clk 0:03:00.9]} 1... e6 {[%clk 0:03:00.1]} 2. Nf3 {[%clk 0:03:01.1]}
2... d5 {[%clk 0:03:00.2]} 3. e3 {[%clk 0:03:02]} 3... Nf6 {[%clk 0:03:00.1]} 4.
Nc3 {[%clk 0:03:02.5]} 4... Be7 {[%clk 0:03:00.2]} 5. cxd5 {[%clk 0:03:02.7]}
5... exd5 {[%clk 0:03:00.2]} 6. d4 {[%clk 0:03:02.7]} 6... c6 {[%clk 0:02:59.4]}
7. Be2 {[%clk 0:03:02.7]} 7... Bf5 {[%clk 0:02:58.5]} 8. O-O {[%clk 0:03:02.9]}
8... Nbd7 {[%clk 0:02:58.2]} 9. a3 {[%clk 0:03:02.1]} 9... a5 {[%clk 0:02:57.7]}
10. b3 {[%clk 0:02:53]} 10... O-O {[%clk 0:02:56.7]} 11. Bb2 {[%clk 0:02:52.7]}
11... Bd6 {[%clk 0:02:56.6]} 12. Rc1 {[%clk 0:02:49.6]} 12... Qe7 {[%clk
0:02:56.2]} 13. a4 {[%clk 0:02:46.5]} 13... Rfe8 {[%clk 0:02:53.4]} 14. Bd3
{[%clk 0:02:30.2]} 14... Bg4 {[%clk 0:02:45.5]} 15. h3 {[%clk 0:02:28.7]} 15...
Bh5 {[%clk 0:02:44.8]} 16. g4 {[%clk 0:02:18.3]} 16... Bg6 {[%clk 0:02:38.3]}
17. Bxg6 {[%clk 0:02:17.5]} 17... hxg6 {[%clk 0:02:38]} 18. Kg2 {[%clk
0:02:15.3]} 18... Ne4 {[%clk 0:02:37.5]} 19. Nxe4 {[%clk 0:02:14.7]} 19... dxe4
{[%clk 0:02:28.6]} 20. Nd2 {[%clk 0:02:15.6]} 20... Bc7 {[%clk 0:02:22.5]} 21.
Qc2 {[%clk 0:02:02.9]} 21... f5 {[%clk 0:02:17.2]} 22. f4 {[%clk 0:01:43.9]}
22... exf3+ {[%clk 0:01:43.7]} 23. Rxf3 {[%clk 0:01:42.8]} 23... Qd6 {[%clk
0:01:42.4]} 24. Nf1 {[%clk 0:01:33.3]} 24... fxg4 {[%clk 0:01:42.4]} 25. hxg4
{[%clk 0:01:30.1]} 25... Nf6 {[%clk 0:01:42.8]} 26. Qxg6 {[%clk 0:01:23.4]}
26... Re4 {[%clk 0:01:35.4]} 27. Rxf6 {[%clk 0:01:15.9]} 27... Qxf6 {[%clk
0:01:29.2]} 28. Qxe4 {[%clk 0:01:15.3]} 28... Rf8 {[%clk 0:01:26.7]} 29. Qf5
{[%clk 0:00:49.1]} 29... Qh4 {[%clk 0:01:10.8]} 30. Qc2 {[%clk 0:00:42.8]} 30...
Qxg4+ {[%clk 0:01:09.3]} 31. Kh1 {[%clk 0:00:38.6]} 31... Qh4+ {[%clk
0:01:01.6]} 32. Kg1 {[%clk 0:00:33]} 32... Rf6 {[%clk 0:00:44.4]} 33. d5 {[%clk
0:00:24.6]} 33... Qh5 {[%clk 0:00:32.6]} 34. Bxf6 {[%clk 0:00:21.8]} 34... Qg4+
{[%clk 0:00:28.2]} 35. Qg2 {[%clk 0:00:20.5]} 35... Qxg2+ {[%clk 0:00:28.3]} 36.
Kxg2 {[%clk 0:00:20.5]} 36... gxf6 {[%clk 0:00:28.9]} 37. dxc6 {[%clk
0:00:20.9]} 37... bxc6 {[%clk 0:00:29.2]} 38. Rxc6 {[%clk 0:00:20.9]} 38... Be5
{[%clk 0:00:29.8]} 39. Rc5 {[%clk 0:00:21.2]} 39... Bd6 {[%clk 0:00:29.8]} 40.
Rxa5 {[%clk 0:00:21.3]} 40... Kf7 {[%clk 0:00:30.3]} 41. Rb5 {[%clk 0:00:21.8]}
41... Bc7 {[%clk 0:00:30.1]} 42. a5 {[%clk 0:00:21.8]} 42... Bd6 {[%clk
0:00:29.5]} 43. a6 {[%clk 0:00:22]} 43... Bc5 {[%clk 0:00:29.5]} 44. Rxc5 {[%clk
0:00:21.6]} 1-0